bitfinex/quotes_BTCUSD_20240717
["timestamp","ask_amount","ask_price","bid_price","bid_amount"]
[1721230465688,0.0146517,65277.0,65276.0,0.023]
[1721230465941,0.17495935,65277.0,65276.0,0.023]
[1721230466138,0.32815235,65277.0,65276.0,0.032]
[1721230466264,0.48134535,65277.0,65276.0,0.032]
[1721230466706,0.17495935,65277.0,65276.0,0.032]
[1721230466900,0.48134535,65277.0,65276.0,0.032]
[1721230467154,0.78773135,65277.0,65276.0,0.009]
[1721230467533,0.48134535,65277.0,65276.0,0.009]
[1721230467919,0.48134535,65277.0,65276.0,0.018]
[1721230468122,0.1532,65274.0,65273.0,0.2236]
[1721230468322,0.1532,65274.0,65273.0,0.2466]
[1721230468523,0.00712949,65274.0,65273.0,0.2466]
[1721230468729,0.3210377,65277.0,65273.0,0.2466]
[1721230469003,0.00710785,65276.0,65275.0,0.153196]
[1721230469200,0.00710785,65276.0,65275.0,0.176196]
[1721230469620,0.00710785,65276.0,65275.0,0.482592]
[1721230469866,0.00710785,65276.0,65275.0,0.565792]
[1721230470041,0.00710785,65276.0,65275.0,1.36819258]
[1721230470253,0.0146517,65277.0,65276.0,0.765977]
[1721230470515,0.0146517,65277.0,65276.0,0.788977]
[1721230471083,0.0146517,65277.0,65276.0,0.790977]
[1721230471288,0.0146517,65277.0,65276.0,1.22457271]
[1721230471672,0.0146517,65277.0,65276.0,0.91818171]
[1721230471870,0.0146517,65277.0,65276.0,0.025]
[1721230472102,0.0146517,65277.0,65276.0,0.2596]
[1721230472500,0.02190938,65277.0,65276.0,0.2596]
[1721230473468,0.02190938,65277.0,65276.0,0.2486]
[1721230474293,0.02190938,65277.0,65276.0,0.2546]
[1721230474906,0.02190938,65277.0,65276.0,0.2526]
[1721230475302,0.02190938,65277.0,65276.0,0.399795]
[1721230475512,0.02190938,65277.0,65276.0,0.52700498]
[1721230475717,0.02190938,65277.0,65276.0,1.74415972]
[1721230475926,0.02190938,65277.0,65276.0,1.75515972]
[1721230476095,0.0146517,65277.0,65276.0,1.53155972]
[1721230476524,0.0146517,65277.0,65276.0,1.22416872]
[1721230477662,0.0146517,65277.0,65276.0,1.06978698]
[1721230478063,0.0146517,65277.0,65276.0,1.37617798]
[1721230478295,0.0146517,65277.0,65276.0,1.248968]
[1721230478496,0.0146517,65277.0,65276.0,1.53054784]
[1721230479150,0.0146517,65277.0,65276.0,1.0697751]
[1721230479647,0.0146517,65277.0,65276.0,1.0657751]
[1721230480094,0.0146517,65277.0,65276.0,1.07377516]
[1721230480541,0.0146517,65277.0,65276.0,1.5345479]
[1721230480758,0.0146517,65277.0,65276.0,1.5485479]
[1721230480968,0.0146517,65277.0,65276.0,1.8409389]
[1721230481589,0.0146517,65277.0,65276.0,1.84093096]
[1721230482032,0.0146517,65277.0,65276.0,1.07376722]
[1721230482817,0.0146517,65277.0,65276.0,1.38015822]
[1721230483536,0.0146517,65277.0,65276.0,1.53453996]
[1721230483852,0.00835,65284.0,65283.0,0.765895]
[1721230484051,0.00835,65284.0,65283.0,1.59344322]
[1721230484253,0.00835,65286.0,65285.0,1.154621]
[1721230484431,0.00835,65286.0,65285.0,1.64535281]
[1721230484859,0.00835,65286.0,65285.0,1.64996865]
[1721230486375,0.00835,65286.0,65285.0,1.71516865]
[1721230486982,0.00835,65286.0,65285.0,1.71513869]
[1721230487500,0.00835,65286.0,65285.0,1.39720274]
[1721230487679,0.00265595,65300.0,65291.0,1.26422]
[1721230487865,4e-05,65300.0,65299.0,0.765707]
[1721230488063,4e-05,65300.0,65299.0,1.4259742]
[1721230488265,4e-05,65300.0,65299.0,1.1196912]
[1721230488525,4e-05,65300.0,65299.0,0.60429656]
[1721230488720,4e-05,65300.0,65299.0,0.52689656]
[1721230488922,4e-05,65300.0,65299.0,0.83317956]
[1721230489178,4e-05,65300.0,65299.0,1.51214556]
[1721230489415,4e-05,65300.0,65299.0,1.51214786]
[1721230490029,4e-05,65300.0,65299.0,1.51914786]
[1721230490443,0.06074,65300.0,65299.0,0.37375786]
[1721230490696,4e-05,65300.0,65299.0,0.2466]
[1721230490929,4e-05,65300.0,65299.0,0.52690744]
[1721230491129,4e-05,65300.0,65299.0,0.83319044]
[1721230491798,4e-05,65300.0,65299.0,0.54090744]
[1721230492000,4e-05,65300.0,65299.0,0.55490744]
[1721230492275,4e-05,65300.0,65299.0,0.86119044]
[1721230492477,4e-05,65300.0,65299.0,0.54090744]
[1721230492646,4e-05,65300.0,65299.0,0.85619044]
[1721230493009,0.459457,65300.0,65299.0,0.36476644]
[1721230493207,4e-05,65300.0,65299.0,0.36476644]
[1721230493420,0.153179,65300.0,65299.0,0.37876644]
[1721230493622,0.459457,65300.0,65299.0,0.37876644]
[1721230493825,0.459457,65300.0,65299.0,0.37876969]
[1721230494229,0.765735,65300.0,65299.0,0.37876969]
[1721230494431,1.125613,65300.0,65299.0,0.15516969]
[1721230494836,1.125613,65300.0,65299.0,0.16516969]
[1721230495037,1.126443,65300.0,65299.0,0.16516969]
[1721230495439,1.126443,65300.0,65299.0,0.12716969]
[1721230495639,1.126443,65300.0,65299.0,0.13216969]
[1721230495872,1.126443,65300.0,65299.0,0.14116969]
[1721230496199,1.126443,65300.0,65299.0,0.13616969]
[1721230496411,1.126443,65300.0,65299.0,0.12716969]
[1721230496799,0.306288,65298.0,65293.0,0.2236]
[1721230496985,0.153149,65296.0,65294.0,0.15017604]
[1721230497187,0.153149,65296.0,65295.0,0.35077604]
[1721230497349,0.153149,65296.0,65295.0,0.35077526]
[1721230497554,0.153146,65297.0,65295.0,0.35077526]
[1721230497858,0.153146,65297.0,65296.0,0.12717526]
[1721230498098,0.154011,65300.0,65297.0,0.153145]
[1721230498301,0.00087,65300.0,65298.0,0.15017526]
[1721230498476,0.00261595,65299.0,65298.0,0.023]
[1721230498689,0.00261595,65299.0,65298.0,0.3737724]
[1721230498890,0.00087,65300.0,65298.0,0.5269154]
[1721230499093,0.00087,65300.0,65299.0,0.6089564]
[1721230499412,0.00087,65300.0,65299.0,0.9382394]
[1721230499981,0.00087,65300.0,65299.0,0.91586261]
[1721230500531,0.00087,65300.0,65299.0,0.60957961]
[1721230501062,0.00087,65300.0,65299.0,0.15015561]
[1721230501295,0.154009,65300.0,65299.0,0.15015561]
[1721230501492,0.00087,65300.0,65299.0,0.15015561]
[1721230503590,0.154009,65300.0,65299.0,0.15015561]
[1721230503818,0.00087,65300.0,65299.0,0.15015561]
[1721230504220,0.00087,65300.0,65299.0,0.15115561]
[1721230504628,0.00087,65300.0,65299.0,0.30429661]
[1721230504833,0.00087,65300.0,65299.0,0.61057961]
[1721230505045,0.00087,65300.0,65299.0,0.30429661]
[1721230505238,0.00087,65300.0,65299.0,0.61057961]
[1721230505443,0.00087,65300.0,65299.0,0.92087397]
[1721230505580,0.00087,65300.0,65299.0,1.30935697]
[1721230505799,0.00261595,65309.0,65307.0,0.153121]
[1721230506001,0.153114,65311.0,65308.0,0.37375414]
[1721230506216,0.00261595,65310.0,65309.0,0.12715414]
[1721230506420,0.11438902,65323.0,65309.0,0.12715414]
[1721230506421,0.0457556,65324.0,65310.0,0.023]
[1721230506617,0.215981,65325.0,65323.0,0.2236]
[1721230506829,0.215981,65325.0,65324.0,0.12712539]
[1721230507238,0.0629,65325.0,65324.0,0.12711376]
[1721230507482,0.38311241,65332.0,65324.0,0.12711376]
[1721230507483,0.153168,65331.0,65324.0,0.17749394]
[1721230507687,0.459299,65331.0,65330.0,0.2236]
[1721230507909,0.153166,65331.0,65330.0,0.35071376]
[1721230508323,0.153166,65331.0,65330.0,0.2236]
[1721230508521,0.153166,65331.0,65330.0,0.35070707]
[1721230508922,0.0001,65331.0,65330.0,0.35070707]
[1721230509195,0.0001,65331.0,65330.0,0.56946258]
[1721230510074,0.0146517,65342.0,65341.0,0.459129]
[1721230510290,0.11424974,65344.0,65341.0,0.2236]
[1721230510498,0.36132912,65356.0,65351.0,0.153019]
[1721230510499,0.14543969,65352.0,65351.0,0.153019]
[1721230510706,0.00834,65352.0,65351.0,0.459058]
[1721230510855,0.26712265,65357.0,65352.0,0.002794]
[1721230511060,0.26712265,65357.0,65351.0,0.2236]
[1721230511061,0.0456434,65354.0,65351.0,0.376619]
[1721230511221,0.04564193,65358.0,65353.0,0.002794]
[1721230511450,0.00834,65362.0,65357.0,0.2236]
[1721230511668,0.161335,65362.0,65357.0,0.2236]
[1721230511870,0.00834,65362.0,65359.0,0.152999]
[1721230512078,0.07717479,65361.0,65357.0,0.2236]
[1721230512279,0.07717479,65361.0,65358.0,0.176002]
[1721230512508,0.00834,65362.0,65361.0,0.458988]
[1721230512708,0.00834,65362.0,65361.0,0.78798]
[1721230513355,0.00834,65362.0,65361.0,0.175996]
[1721230513911,0.00834,65362.0,65361.0,0.481988]
[1721230514115,0.00834,65362.0,65361.0,0.54767451]
[1721230514495,0.00834,65362.0,65361.0,1.00804825]
[1721230514825,0.00834,65362.0,65361.0,1.13509229]
[1721230515050,0.00834,65362.0,65361.0,0.60903204]
[1721230515255,0.00834,65362.0,65361.0,0.184996]
[1721230515570,0.00834,65362.0,65361.0,0.79798]
[1721230515987,0.00834,65362.0,65361.0,0.033]
[1721230516189,0.00834,65362.0,65361.0,0.491988]
[1721230516616,0.00834,65362.0,65361.0,0.486988]
[1721230516818,0.00834,65362.0,65361.0,0.180996]
[1721230517019,0.00834,65362.0,65361.0,0.175996]
[1721230517161,0.00834,65362.0,65361.0,0.481988]
[1721230518386,0.00834,65362.0,65361.0,1.24835374]
[1721230519661,0.00834,65362.0,65361.0,1.4358931]
[1721230519862,0.00834,65362.0,65361.0,1.4458931]
[1721230520801,0.00834,65362.0,65361.0,0.01]
[1721230520947,0.00834,65362.0,65361.0,0.172996]
[1721230521355,0.00834,65362.0,65361.0,0.02]
[1721230521557,0.00834,65362.0,65361.0,0.172996]
[1721230521758,0.00834,65362.0,65361.0,0.01]
[1721230521924,0.00834,65362.0,65361.0,0.468988]
[1721230522120,0.00834,65362.0,65361.0,0.479988]
[1721230522327,0.00834,65362.0,65361.0,0.502988]
[1721230522570,0.00834,65362.0,65361.0,0.80898]
[1721230523606,0.00834,65362.0,65361.0,1.26935374]
[1721230523814,0.00834,65362.0,65361.0,1.45789401]
[1721230524026,0.00834,65362.0,65361.0,1.76388601]
[1721230524305,0.00834,65366.0,65365.0,0.764935]
[1721230524509,0.00834,65366.0,65365.0,1.55449074]
[1721230524842,0.38303379,65390.0,65365.0,1.55449074]
[1721230524843,0.07717479,65390.0,65380.0,0.764757]
[1721230525182,0.23010379,65390.0,65380.0,0.988357]
[1721230525411,0.23010379,65390.0,65380.0,1.011357]
[1721230525559,0.07717479,65390.0,65380.0,1.089857]
[1721230525760,0.07717479,65390.0,65380.0,1.152557]
[1721230526366,0.152918,65395.0,65380.0,1.61884174]
[1721230526718,0.46333221,65396.0,65380.0,1.74584857]
[1721230526948,0.61624621,65396.0,65380.0,1.73984857]
[1721230527181,0.305833,65395.0,65380.0,1.44594557]
[1721230527381,0.07717479,65390.0,65380.0,1.44594557]
[1721230527616,0.38303479,65390.0,65380.0,0.98566083]
[1721230527813,0.152934,65388.0,65380.0,1.00566083]
[1721230528125,0.23010279,65390.0,65380.0,1.00566083]
[1721230528251,0.23010279,65390.0,65380.0,1.31156383]
[1721230528457,0.152931,65389.0,65380.0,1.31156383]
[1721230528675,0.152933,65388.0,65380.0,1.30556383]
[1721230528893,0.152933,65388.0,65384.0,0.152942]
[1721230529094,0.152933,65388.0,65380.0,1.15261283]
[1721230529095,0.152935,65388.0,65385.0,0.023]
[1721230529304,0.152936,65387.0,65385.0,0.023]
[1721230529501,0.152931,65389.0,65384.0,0.023]
[1721230529699,0.07717479,65390.0,65384.0,0.04138]
[1721230529941,0.305864,65389.0,65385.0,0.023]
[1721230530168,0.152937,65387.0,65385.0,0.023]
[1721230530327,0.07717479,65390.0,65381.0,0.023]
[1721230530531,0.07717479,65390.0,65380.0,0.028]
[1721230530532,0.152949,65381.0,65380.0,0.028]
[1721230530684,0.458848,65381.0,65380.0,0.15501429]
[1721230530888,0.458848,65381.0,65380.0,0.014]
[1721230531108,0.458848,65381.0,65380.0,0.12701788]
[1721230531419,0.458848,65381.0,65361.0,0.01829215]
[1721230531420,0.458982,65362.0,65361.0,0.01829215]
[1721230531611,0.306007,65358.0,65353.0,0.01829215]
[1721230531817,0.306007,65358.0,65347.0,0.376627]
[1721230531818,0.153008,65356.0,65354.0,0.002794]
[1721230532020,0.16044831,65357.0,65354.0,0.2236]
[1721230532174,0.0665,65354.0,65326.0,0.002794]
[1721230532376,0.306077,65343.0,65333.0,0.2236]
[1721230532585,0.15438174,65353.0,65342.0,0.2236]
[1721230532586,0.00746406,65353.0,65342.0,0.2236]
[1721230532761,0.07717479,65362.0,65343.0,0.002794]
[1721230533137,0.153019,65351.0,65349.0,0.2236]
[1721230533367,0.153019,65351.0,65350.0,0.2236]
[1721230533368,0.15302,65351.0,65350.0,0.2236]
[1721230533640,0.15302,65351.0,65336.0,0.0757]
[1721230533641,0.0665,65351.0,65336.0,0.0757]
[1721230533888,0.0665,65351.0,65341.0,0.2236]
[1721230533889,0.459121,65342.0,65341.0,0.2236]
[1721230534125,0.15305,65338.0,65335.0,0.2236]
[1721230534361,0.15305,65338.0,65336.0,0.002794]
[1721230534607,0.153016,65353.0,65337.0,0.02996007]
[1721230534847,0.153019,65351.0,65350.0,0.2865]
[1721230535052,0.46304871,65360.0,65350.0,0.2785]
[1721230535053,0.153003,65358.0,65350.0,0.2785]
[1721230535280,0.153003,65358.0,65351.0,0.155813]
[1721230535513,0.153003,65358.0,65350.0,0.2785]
[1721230535514,0.153005,65357.0,65352.0,0.05842605]
[1721230535755,0.306003,65359.0,65352.0,0.05842605]
[1721230535756,0.372473,65366.0,65357.0,0.153005]
[1721230535997,0.062,65374.0,65358.0,0.304294]
[1721230536227,0.305982,65364.0,65358.0,0.304294]
[1721230536474,0.062,65374.0,65359.0,0.18434181]
[1721230536742,0.062,65374.0,65361.0,0.152995]
[1721230536743,0.152978,65369.0,65361.0,0.152995]
[1721230536971,0.305952,65370.0,65362.0,0.025794]
[1721230536972,0.15298,65368.0,65362.0,0.025794]
[1721230537231,0.001,65366.0,65362.0,0.025794]
[1721230537924,0.001,65366.0,65362.0,0.04410181]
[1721230538163,0.001,65366.0,65362.0,0.002794]
[1721230538399,0.152991,65363.0,65362.0,0.0182878]
[1721230538617,0.152991,65363.0,65362.0,0.0432878]
[1721230539587,0.16057114,65363.0,65362.0,0.0432878]
[1721230539787,0.46655414,65363.0,65362.0,0.0202878]
[1721230540150,0.77253714,65363.0,65362.0,0.0202878]
[1721230540349,0.77253714,65363.0,65362.0,0.0182878]
[1721230540751,1.07852014,65363.0,65362.0,0.0222878]
[1721230540968,1.07852014,65363.0,65362.0,0.0182878]
[1721230540969,1.13982014,65363.0,65362.0,0.0182878]
[1721230541428,1.29420188,65363.0,65362.0,0.15035417]
[1721230542327,1.60018488,65363.0,65362.0,0.0232878]
[1721230542523,1.70018488,65363.0,65362.0,0.0232878]
[1721230543140,1.23982014,65363.0,65362.0,0.0232878]
[1721230543671,0.32187114,65363.0,65362.0,0.0232878]
[1721230543867,0.00758014,65363.0,65362.0,0.17335821]
[1721230544067,0.152982,65367.0,65362.0,0.3263413]
[1721230544271,0.16052429,65366.0,65363.0,0.1298535]
[1721230544501,0.16052429,65366.0,65364.0,0.1270595]
[1721230544502,0.00753929,65366.0,65364.0,0.1270595]
[1721230544708,0.16052329,65366.0,65365.0,0.1270595]
[1721230544907,0.764922,65366.0,65365.0,0.1270595]
[1721230545068,0.00754386,65366.0,65365.0,0.1270595]
[1721230545276,0.458953,65366.0,65365.0,0.1270595]
[1721230545593,0.16052798,65366.0,65365.0,0.15809403]
[1721230545800,0.46649698,65366.0,65365.0,0.1270595]
[1721230546743,0.00754398,65366.0,65365.0,0.1270595]
[1721230546988,0.00754398,65366.0,65362.0,0.0182878]
[1721230546989,0.152987,65365.0,65362.0,0.0182878]
[1721230547163,0.152987,65365.0,65363.0,0.12984471]
[1721230547363,0.00755063,65364.0,65363.0,0.002794]
[1721230547612,0.00755063,65364.0,65363.0,0.1270492]
[1721230547807,0.152973,65371.0,65363.0,0.1500492]
[1721230548100,0.15297,65373.0,65368.0,0.2785]
[1721230548244,0.15297,65373.0,65369.0,0.1270492]
[1721230548449,0.152971,65372.0,65370.0,0.1270492]
[1721230548651,0.152971,65372.0,65371.0,0.1270492]
[1721230548949,0.15297,65372.0,65371.0,0.1270492]
[1721230549171,0.458911,65372.0,65371.0,0.1270492]
[1721230549375,1.070793,65372.0,65371.0,0.1270492]
[1721230549988,1.29037474,65372.0,65371.0,0.1270492]
[1721230550193,1.29037474,65372.0,65362.0,0.0182878]
[1721230550194,0.524174,65363.0,65362.0,0.0182878]
[1721230550394,0.830157,65363.0,65362.0,0.14534705]
[1721230550567,0.624174,65363.0,65362.0,0.0182878]
[1721230550804,0.305968,65367.0,65362.0,0.0182878]
[1721230550963,0.305954,65370.0,65362.0,0.0182878]
[1721230551169,0.14107479,65375.0,65364.0,0.2785]
[1721230551499,0.305919,65377.0,65366.0,0.305969]
[1721230551704,0.305919,65377.0,65365.0,0.12706284]
[1721230551705,0.1,65376.0,65367.0,0.12706284]
[1721230551903,0.1,65376.0,65368.0,0.12706284]
[1721230552099,0.1,65376.0,65369.0,0.15006284]
[1721230552301,0.152949,65381.0,65376.0,0.15296]
[1721230552504,0.35140745,65384.0,65377.0,0.12706284]
[1721230552505,0.152948,65382.0,65377.0,0.12706284]
[1721230552704,0.152948,65382.0,65378.0,0.12706284]
[1721230552909,0.07717479,65383.0,65378.0,0.305912]
[1721230553108,0.0639,65386.0,65379.0,0.12703276]
[1721230553307,0.04563842,65386.0,65382.0,0.152946]
[1721230553510,0.04565971,65389.0,65386.0,0.152937]
[1721230553725,0.06848956,65390.0,65386.0,0.152937]
[1721230553726,0.04565971,65390.0,65386.0,0.04560228]
[1721230553912,0.11414928,65395.0,65387.0,0.1270146]
[1721230553913,0.152927,65391.0,65387.0,0.1270146]
[1721230554138,0.04565971,65393.0,65388.0,0.4055146]
[1721230554395,0.04565971,65393.0,65388.0,0.2785]
[1721230554601,0.01627984,65392.0,65391.0,0.458778]
[1721230554834,0.01627984,65392.0,65389.0,0.15000623]
[1721230554835,0.01627984,65392.0,65390.0,0.152926]
[1721230554999,0.152917,65395.0,65391.0,0.12700381]
[1721230555144,0.0002835,65396.0,65392.0,0.43285081]
[1721230555350,0.07745829,65396.0,65392.0,0.305847]
[1721230555550,0.07745829,65396.0,65393.0,0.14999682]
[1721230555772,0.07745829,65396.0,65393.0,0.023]
[1721230556381,0.07745829,65396.0,65393.0,0.175921]
[1721230556783,0.07745829,65396.0,65393.0,0.023]
[1721230557227,0.07745829,65396.0,65391.0,0.0804]
[1721230557436,0.07745829,65396.0,65393.0,0.007]
[1721230558057,0.0002835,65396.0,65392.0,0.305846]
[1721230558198,0.0002835,65396.0,65395.0,0.152916]
[1721230558545,0.0002835,65396.0,65393.0,0.025]
[1721230558546,0.458757,65394.0,65393.0,0.002]
[1721230558758,0.152919,65394.0,65393.0,0.002]
[1721230559504,0.152919,65394.0,65384.0,0.0804]
[1721230559505,0.305856,65391.0,65384.0,0.233341]
[1721230559707,0.0002835,65396.0,65384.0,0.233341]
[1721230559708,0.07745829,65396.0,65388.0,0.2785]
[1721230559913,0.152921,65394.0,65393.0,0.005]
[1721230560331,0.152921,65394.0,65390.0,0.152928]
[1721230560583,0.152926,65391.0,65388.0,0.2785]
[1721230560821,0.07745829,65396.0,65389.0,0.12699938]
[1721230560822,0.152922,65393.0,65389.0,0.12699938]
[1721230561020,0.152922,65393.0,65388.0,0.432431]
[1721230561239,0.152922,65393.0,65388.0,0.2795]
[1721230561471,0.15292,65394.0,65390.0,0.152927]
[1721230561614,0.23037229,65396.0,65389.0,0.023]
[1721230561829,0.23037229,65396.0,65391.0,0.152924]
[1721230562173,0.152917,65395.0,65391.0,0.152924]
[1721230562379,0.153757,65395.0,65391.0,0.152924]
[1721230562583,0.07801479,65395.0,65394.0,0.458757]
[1721230562756,0.07801479,65395.0,65394.0,0.152919]
[1721230562972,0.07801479,65395.0,65394.0,0.20346722]
[1721230562973,0.00084,65395.0,65394.0,0.20346722]
[1721230563162,0.01719942,65395.0,65394.0,0.20346722]
[1721230563367,0.153758,65395.0,65390.0,0.152927]
[1721230565950,0.15292,65394.0,65391.0,0.014]
[1721230566193,0.00084,65395.0,65391.0,0.166924]
[1721230566414,0.00084,65395.0,65394.0,0.152919]
[1721230566611,0.00084,65395.0,65394.0,0.7597968]
[1721230566811,0.00084,65395.0,65394.0,1.08557674]
[1721230567046,0.00084,65395.0,65394.0,1.39141474]
[1721230567356,0.00084,65395.0,65394.0,0.931195]
[1721230568110,0.00084,65395.0,65394.0,0.0778]
[1721230568111,0.0083496,65395.0,65394.0,0.0778]
[1721230568460,0.0083496,65395.0,65394.0,0.0918]
[1721230569292,0.0083496,65395.0,65394.0,0.0778]
[1721230569476,0.0083496,65395.0,65394.0,0.234719]
[1721230569477,0.02342787,65395.0,65394.0,0.234719]
[1721230569967,0.02342787,65395.0,65394.0,0.257719]
[1721230570173,0.0083496,65395.0,65394.0,0.2837909]
[1721230570450,0.02342787,65395.0,65394.0,0.2837909]
[1721230570856,0.02342787,65395.0,65394.0,0.5896289]
[1721230571029,0.02342787,65395.0,65394.0,1.41528664]
[1721230571428,0.0083496,65395.0,65394.0,1.42428664]
[1721230571955,0.0083496,65395.0,65394.0,1.42128664]
[1721230572271,0.0083496,65395.0,65394.0,1.43428664]
[1721230572789,0.0002835,65396.0,65395.0,0.814582]
[1721230573133,0.0002835,65396.0,65395.0,2.16521401]
[1721230573338,0.0002835,65396.0,65395.0,2.03824396]
[1721230573544,0.0002835,65396.0,65395.0,2.16520506]
[1721230574377,0.0002835,65396.0,65395.0,2.10900506]
[1721230574822,0.0002835,65396.0,65395.0,2.12300506]
[1721230575242,0.0002835,65396.0,65395.0,1.51133906]
[1721230575617,0.0002835,65396.0,65395.0,1.49733906]
[1721230575816,0.0002835,65396.0,65395.0,1.80317206]
[1721230576017,0.0002835,65396.0,65395.0,1.49733906]
[1721230576231,0.0002835,65396.0,65395.0,0.4294611]
[1721230576450,0.0002835,65396.0,65395.0,0.34927245]
[1721230576683,0.0002835,65396.0,65395.0,0.36327247]
[1721230576684,0.01546223,65396.0,65395.0,0.36327247]
[1721230576889,0.01546223,65396.0,65395.0,0.2363]
[1721230577442,0.01546223,65396.0,65395.0,0.389216]
[1721230577643,0.01546223,65396.0,65395.0,0.681049]
[1721230577846,0.01546223,65396.0,65395.0,0.2223]
[1721230578183,0.01546223,65396.0,65395.0,0.34928284]
[1721230578389,0.01546223,65396.0,65395.0,0.14098284]
[1721230578594,0.01546223,65396.0,65395.0,1.53197958]
[1721230578774,0.01546223,65396.0,65395.0,0.75193184]
[1721230578979,0.0002835,65396.0,65395.0,1.07176484]
[1721230579337,0.0002835,65396.0,65395.0,1.05776028]
[1721230579744,0.0002835,65396.0,65395.0,0.930782]
[1721230579929,0.0002835,65396.0,65395.0,1.37759065]
[1721230580354,0.0002835,65396.0,65395.0,1.53197239]
[1721230581121,0.0002835,65396.0,65395.0,1.83780352]
[1721230581238,0.00834,65397.0,65395.0,1.83780352]
[1721230581239,0.00834,65397.0,65396.0,0.847172]
[1721230581436,0.00834,65397.0,65396.0,1.21802752]
[1721230581639,0.00834,65397.0,65396.0,1.52385652]
[1721230582237,0.00834,65397.0,65396.0,1.39688274]
[1721230582497,0.00834,65397.0,65396.0,1.73253952]
[1721230582695,0.00834,65397.0,65396.0,1.52384316]
[1721230583234,0.00834,65397.0,65396.0,1.05463242]
[1721230583637,0.00834,65397.0,65396.0,1.20901416]
[1721230583965,0.00834,65397.0,65396.0,1.51484316]
[1721230584442,0.00834,65397.0,65396.0,1.53784316]
[1721230584752,0.00834,65397.0,65396.0,1.52384316]
[1721230584952,0.00834,65397.0,65396.0,1.53784316]
[1721230585214,0.00834,65397.0,65396.0,1.55084316]
[1721230585439,0.00834,65397.0,65396.0,1.55085171]
[1721230585659,0.00834,65397.0,65396.0,1.53785171]
[1721230585983,0.00834,65397.0,65396.0,1.55185171]
[1721230586178,0.00834,65397.0,65396.0,1.02514097]
[1721230586402,0.00834,65397.0,65396.0,1.00214097]
[1721230587028,0.00834,65397.0,65396.0,0.15496897]
[1721230587201,0.00834,65397.0,65396.0,0.30788297]
[1721230587409,0.02340648,65397.0,65396.0,0.30788297]
[1721230587787,0.02340648,65397.0,65396.0,0.61371197]
[1721230587788,0.02341098,65397.0,65396.0,0.61371197]
[1721230587973,0.02341098,65397.0,65396.0,0.30788297]
[1721230588197,0.00834,65397.0,65396.0,0.32188297]
[1721230588402,0.00834,65397.0,65396.0,0.166914]
[1721230588533,0.00834,65397.0,65396.0,0.61372406]
[1721230588747,0.00834,65397.0,65396.0,0.29389506]
[1721230588943,0.00834,65397.0,65396.0,1.27344066]
[1721230589144,0.00834,65397.0,65396.0,1.45388058]
[1721230589701,0.00834,65397.0,65396.0,1.4508224]
[1721230589933,0.00834,65397.0,65396.0,1.5416224]
[1721230590136,0.00834,65397.0,65396.0,1.84744367]
[1721230590249,0.00834,65397.0,65396.0,2.02389782]
[1721230591080,0.00834,65397.0,65396.0,2.00989782]
[1721230591286,0.00834,65397.0,65396.0,1.69247074]
[1721230591486,0.00834,65397.0,65396.0,2.00988099]
[1721230591690,0.00834,65397.0,65396.0,2.02388099]
[1721230591912,0.00834,65397.0,65396.0,2.00988099]
[1721230592319,0.00834,65397.0,65396.0,2.02388099]
[1721230592578,0.00834,65397.0,65396.0,2.03788099]
[1721230592729,0.00834,65397.0,65396.0,2.02388099]
[1721230593339,0.00834,65397.0,65396.0,2.03788099]
[1721230594446,0.00834,65397.0,65396.0,1.54160604]
[1721230594670,0.00834,65397.0,65396.0,1.75029485]
[1721230594985,0.00834,65397.0,65396.0,1.54160604]
[1721230595187,0.00834,65397.0,65396.0,0.3308373]
[1721230595547,0.00834,65397.0,65396.0,0.3078373]
[1721230595747,0.02342766,65397.0,65396.0,0.1549643]
[1721230595949,0.00834,65397.0,65396.0,0.1549643]
[1721230596516,0.02344033,65397.0,65396.0,0.1549643]
[1721230596839,0.02344033,65397.0,65396.0,0.1558773]
[1721230597044,0.17635233,65397.0,65396.0,0.1558773]
[1721230597499,0.17635233,65397.0,65396.0,0.028913]
[1721230597661,0.17635233,65397.0,65396.0,0.15589446]
[1721230598519,0.02344033,65397.0,65396.0,0.40129446]
[1721230598945,0.02344033,65397.0,65396.0,0.37829446]
[1721230598946,0.17635233,65397.0,65396.0,0.37829446]
[1721230599348,0.48217633,65397.0,65396.0,0.37829446]
[1721230600113,0.54277633,65397.0,65396.0,0.37829446]
[1721230600595,0.54277633,65397.0,65396.0,0.37829819]
[1721230601246,0.58852315,65397.0,65396.0,0.37829819]
[1721230601472,0.89434715,65397.0,65396.0,0.37829819]
[1721230601607,0.8867978,65397.0,65396.0,0.37829819]
[1721230602012,1.48227991,65397.0,65396.0,0.15589819]
[1721230602207,1.48227991,65397.0,65396.0,1e-06]
[1721230602208,2.49420081,65397.0,65396.0,1e-06]
[1721230602413,2.51812744,65397.0,65396.0,1e-06]
[1721230602612,2.55653288,65397.0,65396.0,1e-06]
[1721230602818,2.55653288,65397.0,65376.0,0.002794]
[1721230602819,1.070629,65382.0,65381.0,0.2224]
[1721230603015,0.59326072,65382.0,65381.0,0.34941704]
[1721230603306,0.90717919,65382.0,65381.0,0.2224]
[1721230603518,0.77275947,65382.0,65381.0,0.2224]
[1721230603720,0.77275947,65382.0,65374.0,0.2224]
[1721230603721,0.152965,65375.0,65374.0,0.2224]
[1721230603895,0.06870089,65375.0,65374.0,0.2224]
[1721230604055,0.0767362,65375.0,65374.0,0.283445]
[1721230604404,0.00803531,65375.0,65374.0,0.283445]
[1721230604829,0.39751219,65379.0,65374.0,0.43782674]
[1721230604830,0.04578141,65378.0,65374.0,0.43782674]
[1721230604984,0.09160119,65381.0,65378.0,0.305913]
[1721230604985,0.04577673,65381.0,65378.0,0.305913]
[1721230605189,0.04577673,65382.0,65381.0,0.459848]
[1721230605385,0.04577673,65382.0,65381.0,0.788747]
[1721230605612,0.06870089,65384.0,65382.0,0.152947]
[1721230605613,0.04577673,65383.0,65382.0,0.152947]
[1721230605876,0.04577673,65383.0,65382.0,0.458841]
[1721230606085,0.04577673,65383.0,65382.0,0.023]
[1721230606255,0.04577673,65383.0,65382.0,0.398347]
[1721230606431,0.152944,65383.0,65382.0,0.2224]
[1721230606630,0.458833,65383.0,65382.0,0.2224]
[1721230606857,0.52747528,65383.0,65382.0,0.2224]
[1721230607064,0.52747528,65383.0,65382.0,0.2244]
[1721230607065,0.83336698,65383.0,65382.0,0.2244]